[Event "Junior-SM 2025"]
[Site "Uppsala, Sweden"]
[Date "2025.07.06"]
[Round "9.5"]
[White "Sandberg, Lucas"]
[Black "Grahn, Vidar"]
[Result "1/2-1/2"]
[TimeControl "90 min for 40 move + 30 min with an increment of 30 sec starting move 1"]
[BlackTitle "FM"]
[WhiteFideId "1773712"]
[BlackFideId "1744780"]
[WhiteElo "2243"]
[BlackElo "2239"]

1. g3 {[%clk 01:30:21]} {[%emt 00:00:38]} d5 {[%clk 01:29:03]} {[%emt
00:01:58]} 2. Nf3 {[%clk 01:29:06]} {[%emt 00:01:43]} g6 {[%emt 00:01:33]} 3.
Bg2 {[%clk 01:29:16]} {[%emt 00:00:02]} Bg7 {[%clk 01:28:39]} {[%emt 00:00:10]}
4. O-O {[%clk 01:29:02]} {[%emt 00:00:42]} Nf6 {[%clk 01:24:58]} {[%emt
00:04:13]} 5. c4 {[%clk 01:27:27]} {[%emt 00:02:05]} c6 {[%clk 01:25:00]}
{[%emt 00:00:28]} 6. d3 {[%clk 01:23:21]} {[%emt 00:04:36]} O-O {[%clk
01:24:31]} {[%emt 00:00:59]} 7. Nc3 {[%clk 01:22:57]} {[%emt 00:00:53]} a5
{[%clk 01:21:15]} {[%emt 00:03:47]} 8. e4 {[%clk 01:17:44]} {[%emt 00:05:43]}
dxc4 {[%clk 01:17:10]} {[%emt 00:04:35]} 9. dxc4 {[%clk 01:18:00]} {[%emt
00:00:14]} Qxd1 {[%clk 01:17:34]} {[%emt 00:00:07]} 10. Rxd1 {[%clk 01:18:26]}
{[%emt 00:00:03]} Be6 {[%clk 01:17:35]} {[%emt 00:00:29]} 11. Bf1 {[%clk
01:18:01]} {[%emt 00:00:54]} h6 {[%clk 01:16:32]} {[%emt 00:01:34]} 12. h3
{[%clk 01:10:11]} {[%emt 00:08:18]} Nfd7 {[%clk 00:58:15]} {[%emt 00:18:48]} 13.
Nd4 {[%clk 01:08:34]} {[%emt 00:02:07]} Nc5 {[%clk 00:56:22]} {[%emt 00:02:24]}
14. Be3 {[%clk 01:02:18]} {[%emt 00:06:45]} Nba6 {[%clk 00:56:06]} {[%emt
00:00:47]} 15. Nxe6 {[%clk 00:59:00]} {[%emt 00:03:48]} Nxe6 {[%clk 00:56:14]}
{[%emt 00:00:22]} 16. f4 {[%clk 00:47:59]} {[%emt 00:11:31]} Nb4 {[%clk
00:48:12]} {[%emt 00:08:32]} 17. Rac1 {[%clk 00:41:51]} {[%emt 00:06:37]} c5
{[%clk 00:46:29]} {[%emt 00:02:14]} 18. Rd7 {[%clk 00:37:09]} {[%emt 00:05:12]}
Rab8 {[%clk 00:39:17]} {[%emt 00:07:42]} 19. e5 {[%clk 00:30:19]} {[%emt
00:07:20]} Nc6 {[%clk 00:32:23]} {[%emt 00:07:24]} 20. Bg2 {[%clk 00:28:14]}
{[%emt 00:02:35]} Ned4 {[%clk 00:24:46]} {[%emt 00:08:07]} 21. Rd1 {[%clk
00:21:47]} {[%emt 00:06:57]} b6 {[%clk 00:15:26]} {[%emt 00:09:51]} 22. Rc7
{[%clk 00:15:14]} {[%emt 00:07:02]} Rfc8 {[%clk 00:14:20]} {[%emt 00:01:36]} 23.
Rxc8+ {[%clk 00:15:37]} {[%emt 00:00:07]} Rxc8 {[%clk 00:14:46]} {[%emt
00:00:03]} 24. Nd5 {[%clk 00:15:27]} {[%emt 00:00:40]} Rb8 {[%clk 00:09:31]}
{[%emt 00:05:45]} 25. Bxd4 {[%clk 00:13:27]} {[%emt 00:02:31]} cxd4 {[%clk
00:09:53]} {[%emt 00:00:08]} 26. Nc7 {[%clk 00:13:26]} {[%emt 00:00:31]} Rc8
{[%clk 00:09:36]} {[%emt 00:00:48]} 27. Nb5 {[%clk 00:13:32]} {[%emt 00:00:23]}
f6 {[%clk 00:09:19]} {[%emt 00:00:46]} 28. Bd5+ {[%clk 00:08:57]} {[%emt
00:05:05]} Kh7 {[%clk 00:09:35]} {[%emt 00:00:15]} 29. e6 {[%clk 00:08:58]}
{[%emt 00:00:29]} f5 {[%clk 00:09:44]} {[%emt 00:00:21]} 30. b3 {[%clk
00:08:01]} {[%emt 00:01:27]} Nb4 {[%clk 00:10:03]} {[%emt 00:00:10]} 31. Nxd4
{[%clk 00:07:03]} {[%emt 00:01:27]} Nxa2 {[%clk 00:08:11]} {[%emt 00:02:24]} 32.
Nc6 {[%clk 00:06:13]} {[%emt 00:01:20]} Bf6 {[%clk 00:07:01]} {[%emt 00:01:39]}
33. Bf3 {[%clk 00:06:12]} {[%emt 00:00:30]} Nb4 {[%clk 00:05:30]} {[%emt
00:02:03]} 34. Na7 {[%clk 00:06:37]} {[%emt 00:00:05]} Rc5 {[%clk 00:05:05]}
{[%emt 00:00:54]} 35. Nb5 {[%clk 00:02:57]} {[%emt 00:04:10]} a4 {[%clk
00:05:26]} {[%emt 00:00:10]} 36. bxa4 {[%clk 00:03:22]} {[%emt 00:00:04]} Rxc4
{[%clk 00:05:48]} {[%emt 00:00:09]} 37. Rd7 {[%clk 00:02:28]} {[%emt 00:01:24]}
Na6 {[%clk 00:06:07]} {[%emt 00:00:11]} 38. Nd6 {[%clk 00:01:44]} {[%emt
00:01:14]} Rxa4 {[%clk 00:04:45]} {[%emt 00:01:52]} 39. Ne8 {[%clk 00:02:00]}
{[%emt 00:00:13]} Bd4+ {[%clk 00:05:04]} {[%emt 00:00:12]} 40. Kf1 {[%clk
00:01:24]} {[%emt 00:01:05]} Bc5 {[%clk 00:05:25]} {[%emt 00:00:09]} 41. Nf6+
{[%clk 00:00:40]} {[%emt 00:01:14]} Kg7 {[%clk 00:01:59]} {[%emt 00:03:56]} 42.
Nd5 {[%clk 00:27:22]} {[%emt 00:03:48]} Ra3 {[%clk 00:25:21]} {[%emt 00:07:08]}
43. Kg2 {[%clk 00:22:44]} {[%emt 00:05:08]} Nb8 {[%clk 00:24:55]} {[%emt
00:00:56]} 44. Rc7 {[%clk 00:21:51]} {[%emt 00:01:23]} Ra2+ {[%clk 00:19:58]}
{[%emt 00:05:27]} 45. Kh1 {[%clk 00:22:14]} {[%emt 00:00:07]} Rf2 {[%clk
00:17:04]} {[%emt 00:03:23]} 46. Bg2 {[%clk 00:22:31]} {[%emt 00:00:15]} Rc2
{[%clk 00:15:58]} {[%emt 00:01:34]} 47. Bf3 {[%clk 00:22:52]} {[%emt 00:00:11]}
Rc1+ {[%clk 00:15:34]} {[%emt 00:00:53]} 48. Kg2 {[%clk 00:23:15]} {[%emt
00:00:06]} Rc2+ {[%clk 00:12:02]} {[%emt 00:04:02]} 49. Kh1 {[%clk 00:23:41]}
{[%emt 00:00:05]} Rc1+ {[%clk 00:11:57]} {[%emt 00:00:36]} 1/2-1/2

[Event "Junior-SM 2025"]
[Site "Uppsala, Sweden"]
[Date "2025.07.06"]
[Round "9.1"]
[White "Karlsson, Stefan"]
[Black "Religa, Marek"]
[Result "0-1"]
[TimeControl "90 min for 40 move + 30 min with an increment of 30 sec starting move 1"]
[WhiteFideId "1771183"]
[BlackFideId "1750208"]
[WhiteElo "2126"]
[BlackElo "2228"]

1. Nf3 {[%clk 01:29:48]} {[%emt 00:01:10]} d6 {[%clk 01:14:39]} {[%emt
00:16:23]} 2. d4 {[%clk 01:27:41]} {[%emt 00:02:36]} Nd7 {[%clk 01:14:38]}
{[%emt 00:00:32]} 3. e4 {[%clk 01:25:21]} {[%emt 00:02:48]} e5 {[%clk
01:14:48]} {[%emt 00:00:22]} 4. Nc3 {[%clk 01:25:08]} {[%emt 00:00:43]} Ngf6
{[%clk 01:15:17]} {[%emt 00:00:01]} 5. h3 {[%clk 01:24:54]} {[%emt 00:00:43]}
c6 {[%emt 00:00:19]} 6. g4 {[%clk 01:18:12]} {[%emt 00:07:05]} h6 {[%clk
01:14:12]} {[%emt 00:01:53]} 7. Be3 {[%clk 01:13:50]} {[%emt 00:04:50]} b5
{[%clk 01:13:56]} {[%emt 00:00:48]} 8. a3 {[%clk 01:13:11]} {[%emt 00:01:08]}
Bb7 {[%clk 01:14:09]} {[%emt 00:00:18]} 9. Qd2 {[%clk 01:02:56]} {[%emt
00:10:45]} a5 {[%clk 01:14:28]} {[%emt 00:00:12]} 10. Bd3 {[%clk 00:57:32]}
{[%emt 00:05:52]} b4 {[%clk 01:12:36]} {[%emt 00:02:24]} 11. axb4 {[%clk
00:57:47]} {[%emt 00:00:14]} axb4 {[%clk 01:13:05]} {[%emt 00:00:02]} 12. Rxa8
{[%clk 00:57:37]} {[%emt 00:00:40]} Qxa8 {[%clk 01:13:29]} {[%emt 00:00:06]} 13.
Nd1 {[%clk 00:56:48]} {[%emt 00:01:19]} c5 {[%clk 01:04:36]} {[%emt 00:09:23]}
14. d5 {[%clk 00:53:47]} {[%emt 00:03:30]} Nxd5 {[%clk 01:02:56]} {[%emt
00:02:11]} 15. g5 {[%clk 00:44:24]} {[%emt 00:09:53]} Nxe3 {[%clk 00:58:15]}
{[%emt 00:05:11]} 16. Qxe3 {[%clk 00:43:22]} {[%emt 00:01:31]} c4 {[%clk
00:58:19]} {[%emt 00:00:27]} 17. Bxc4 {[%clk 00:43:30]} {[%emt 00:00:22]} Bxe4
{[%clk 00:58:47]} {[%emt 00:00:02]} 18. Be2 {[%clk 00:42:53]} {[%emt 00:01:06]}
hxg5 {[%clk 00:58:59]} {[%emt 00:00:19]} 19. Rh2 {[%clk 00:41:59]} {[%emt
00:01:23]} f6 {[%clk 00:57:08]} {[%emt 00:02:22]} 20. Nd2 {[%clk 00:40:53]}
{[%emt 00:01:36]} Bxc2 {[%clk 00:55:01]} {[%emt 00:02:37]} 21. Nc4 {[%clk
00:39:49]} {[%emt 00:01:33]} Bf5 {[%clk 00:37:04]} {[%emt 00:18:28]} 22. Bf3
{[%clk 00:37:56]} {[%emt 00:02:22]} d5 {[%clk 00:34:56]} {[%emt 00:02:39]} 23.
Nb6 {[%clk 00:37:59]} {[%emt 00:00:25]} Nxb6 {[%clk 00:35:02]} {[%emt
00:00:26]} 24. Qxb6 {[%clk 00:38:24]} {[%emt 00:00:05]} e4 {[%clk 00:32:45]}
{[%emt 00:02:47]} 25. Be2 {[%clk 00:38:23]} {[%emt 00:00:31]} Kf7 {[%clk
00:31:34]} {[%emt 00:01:41]} 26. Bb5 {[%clk 00:34:43]} {[%emt 00:04:09]} Be7
{[%clk 00:27:40]} {[%emt 00:04:24]} 27. Bc6 {[%clk 00:34:14]} {[%emt 00:00:59]}
Qd8 {[%clk 00:27:28]} {[%emt 00:00:43]} 28. Qd4 {[%clk 00:34:26]} {[%emt
00:00:17]} Be6 {[%clk 00:24:59]} {[%emt 00:03:00]} 29. Ne3 {[%clk 00:34:31]}
{[%emt 00:00:24]} Qd6 {[%clk 00:24:39]} {[%emt 00:00:51]} 30. Bxd5 {[%clk
00:34:52]} {[%emt 00:00:08]} Bxd5 {[%clk 00:22:58]} {[%emt 00:02:12]} 31. Qxd5+
{[%clk 00:35:05]} {[%emt 00:00:16]} Qxd5 {[%clk 00:23:26]} {[%emt 00:00:03]} 32.
Nxd5 {[%clk 00:35:20]} {[%emt 00:00:15]} Bc5 {[%clk 00:23:25]} {[%emt
00:00:31]} 33. Ke2 {[%clk 00:34:57]} {[%emt 00:00:52]} Ke6 {[%clk 00:23:11]}
{[%emt 00:00:45]} 34. Ne3 {[%clk 00:34:56]} {[%emt 00:00:30]} Bxe3 {[%clk
00:22:31]} {[%emt 00:01:11]} 35. Kxe3 {[%clk 00:34:42]} {[%emt 00:00:42]} f5
{[%clk 00:22:14]} {[%emt 00:00:48]} 36. Kd4 {[%clk 00:32:43]} {[%emt 00:02:29]}
Rd8+ {[%clk 00:22:28]} {[%emt 00:00:16]} 37. Kc4 {[%clk 00:31:46]} {[%emt
00:01:26]} Rd2 {[%clk 00:22:54]} {[%emt 00:00:05]} 38. Kxb4 {[%clk 00:32:10]}
{[%emt 00:00:06]} e3 {[%clk 00:11:23]} {[%emt 00:12:01]} 39. Kc3 {[%clk
00:31:49]} {[%emt 00:00:50]} Rxf2 {[%clk 00:10:53]} {[%emt 00:01:01]} 40. Rh1
{[%clk 00:32:08]} {[%emt 00:00:11]} e2 {[%clk 00:10:29]} {[%emt 00:00:55]} 41.
Re1 {[%clk 00:32:21]} {[%emt 00:00:16]} f4 {[%clk 00:10:31]} {[%emt 00:00:28]}
42. Kd2 {[%clk 00:32:19]} {[%emt 00:00:31]} f3 {[%clk 00:10:44]} {[%emt
00:00:18]} 43. Ke3 {[%clk 00:32:03]} {[%emt 00:00:44]} Rf1 {[%clk 00:11:07]}
{[%emt 00:00:09]} 44. Kd4 {[%clk 00:31:57]} {[%emt 00:00:36]} Rxe1 {[%emt
00:00:28]} 0-1

[Event "Junior-SM 2025"]
[Site "Uppsala, Sweden"]
[Date "2025.07.06"]
[Round "9.3"]
[White "Seo, Jung Hyun"]
[Black "Frank, Anton"]
[Result "1/2-1/2"]
[TimeControl "90 min for 40 move + 30 min with an increment of 30 sec starting move 1"]
[BlackTitle "CM"]
[WhiteFideId "1735667"]
[BlackFideId "1752383"]
[WhiteElo "2153"]
[BlackElo "2183"]

1. e4 {[%clk 01:30:57]} {[%emt 00:00:02]} e5 {[%clk 01:30:53]} {[%emt
00:00:08]} 2. Nf3 {[%clk 01:31:23]} {[%emt 00:00:03]} Nc6 {[%clk 01:31:17]}
{[%emt 00:00:06]} 3. d4 {[%clk 01:31:50]} {[%emt 00:00:04]} exd4 {[%clk
01:31:40]} {[%emt 00:00:06]} 4. Nxd4 {[%clk 01:32:16]} {[%emt 00:00:05]} Nf6
{[%clk 01:32:02]} {[%emt 00:00:07]} 5. Nxc6 {[%clk 01:32:43]} {[%emt 00:00:03]}
bxc6 {[%clk 01:32:21]} {[%emt 00:00:11]} 6. e5 {[%clk 01:33:12]} {[%emt
00:00:01]} Qe7 {[%clk 01:32:39]} {[%emt 00:00:12]} 7. Qe2 {[%clk 01:33:39]}
{[%emt 00:00:03]} Nd5 {[%clk 01:31:32]} {[%emt 00:01:37]} 8. c4 {[%clk
01:33:57]} {[%emt 00:00:12]} Qb4+ {[%clk 01:31:51]} {[%emt 00:00:12]} 9. Nd2
{[%clk 01:30:41]} {[%emt 00:03:46]} Nf4 {[%clk 01:32:14]} {[%emt 00:00:06]} 10.
Qe4 {[%clk 01:29:39]} {[%emt 00:01:31]} Ne6 {[%clk 01:31:05]} {[%emt 00:01:39]}
11. g3 {[%clk 01:21:45]} {[%emt 00:08:24]} Bb7 {[%clk 01:17:25]} {[%emt
00:14:11]} 12. Bg2 {[%clk 01:13:54]} {[%emt 00:08:22]} d5 {[%clk 01:16:12]}
{[%emt 00:01:42]} 13. exd6 {[%clk 01:11:34]} {[%emt 00:02:50]} Bxd6 {[%clk
01:16:31]} {[%emt 00:00:11]} 14. O-O {[%clk 01:10:33]} {[%emt 00:01:32]} Rb8
{[%clk 01:16:55]} {[%emt 00:00:05]} 15. a3 {[%clk 01:09:08]} {[%emt 00:01:55]}
Qb6 {[%clk 01:16:12]} {[%emt 00:01:13]} 16. c5 {[%clk 01:06:23]} {[%emt
00:03:16]} Qxc5 {[%clk 01:12:05]} {[%emt 00:04:36]} 17. Nc4 {[%clk 01:04:19]}
{[%emt 00:02:34]} O-O {[%clk 01:10:41]} {[%emt 00:01:53]} 18. Be3 {[%clk
01:00:43]} {[%emt 00:04:06]} Qb5 {[%clk 01:09:01]} {[%emt 00:02:10]} 19. Qc2
{[%clk 00:47:39]} {[%emt 00:13:33]} c5 {[%clk 01:06:21]} {[%emt 00:03:11]} 20.
Bxb7 {[%clk 00:47:50]} {[%emt 00:00:19]} Qxb7 {[%clk 01:04:57]} {[%emt
00:01:55]} 21. Rad1 {[%clk 00:45:57]} {[%emt 00:02:22]} Rfd8 {[%clk 01:00:28]}
{[%emt 00:05:00]} 22. Rd2 {[%clk 00:44:27]} {[%emt 00:01:59]} Be7 {[%clk
00:58:38]} {[%emt 00:02:20]} 23. Rfd1 {[%clk 00:39:14]} {[%emt 00:05:44]} Rxd2
{[%clk 00:51:48]} {[%emt 00:07:21]} 24. Rxd2 {[%clk 00:38:55]} {[%emt
00:00:48]} Bf6 {[%clk 00:50:56]} {[%emt 00:01:22]} 25. h3 {[%clk 00:26:22]}
{[%emt 00:13:03]} g6 {[%clk 00:48:00]} {[%emt 00:03:26]} 26. Kh2 {[%clk
00:24:18]} {[%emt 00:02:34]} h5 {[%clk 00:38:11]} {[%emt 00:10:19]} 27. h4
{[%clk 00:17:38]} {[%emt 00:07:11]} Kg7 {[%clk 00:33:32]} {[%emt 00:05:09]} 28.
Kg1 {[%clk 00:13:42]} {[%emt 00:04:25]} Re8 {[%clk 00:26:40]} {[%emt 00:07:22]}
29. Qa4 {[%clk 00:12:30]} {[%emt 00:01:43]} Rb8 {[%clk 00:22:51]} {[%emt
00:04:19]} 30. Rd7 {[%clk 00:10:06]} {[%emt 00:02:54]} Qb5 {[%clk 00:20:55]}
{[%emt 00:02:26]} 31. Qxb5 {[%clk 00:09:59]} {[%emt 00:00:37]} Rxb5 {[%clk
00:21:24]} {[%emt 00:00:01]} 32. Bc1 {[%clk 00:08:09]} {[%emt 00:02:20]} Bd4
{[%clk 00:17:10]} {[%emt 00:04:44]} 33. Kg2 {[%clk 00:05:39]} {[%emt 00:02:59]}
Kf8 {[%clk 00:15:46]} {[%emt 00:01:54]} 34. Rd5 {[%clk 00:04:14]} {[%emt
00:01:56]} Rb8 {[%clk 00:15:40]} {[%emt 00:00:37]} 35. Kf3 {[%clk 00:03:19]}
{[%emt 00:01:24]} Ke7 {[%clk 00:12:50]} {[%emt 00:03:20]} 36. Ne5 {[%clk
00:02:46]} {[%emt 00:01:03]} Rb3+ {[%clk 00:11:07]} {[%emt 00:02:13]} 37. Kg2
{[%clk 00:02:39]} {[%emt 00:00:37]} Bxb2 {[%clk 00:08:05]} {[%emt 00:03:32]} 38.
Bxb2 {[%clk 00:02:21]} {[%emt 00:00:48]} Rxb2 {[%clk 00:08:34]} 39. Rd7+ {[%clk
00:02:15]} {[%emt 00:00:35]} Ke8 {[%clk 00:08:26]} {[%emt 00:00:38]} 40. Rd3
{[%clk 00:01:45]} {[%emt 00:01:01]} a6 {[%clk 00:04:53]} {[%emt 00:04:03]} 41.
Re3 {[%clk 00:28:44]} {[%emt 00:03:31]} Ke7 {[%clk 00:31:59]} {[%emt 00:03:24]}
42. Rf3 {[%clk 00:26:16]} {[%emt 00:02:58]} Re2 {[%clk 00:15:08]} {[%emt
00:17:20]} 43. Nxf7 {[%clk 00:25:29]} {[%emt 00:01:18]} Nd4 {[%clk 00:14:45]}
{[%emt 00:00:53]} 44. Rf4 {[%clk 00:25:52]} {[%emt 00:00:07]} Ne6 {[%clk
00:15:10]} {[%emt 00:00:06]} 45. Rf3 {[%clk 00:26:14]} {[%emt 00:00:07]} Nd4
{[%clk 00:06:03]} {[%emt 00:09:38]} 46. Rf4 {[%clk 00:26:12]} {[%emt 00:00:31]}
Nf5 {[%clk 00:03:04]} {[%emt 00:03:29]} 47. Ng5 {[%clk 00:23:43]} {[%emt
00:02:57]} Kd6 {[%clk 00:03:02]} {[%emt 00:00:34]} 48. Kf1 {[%clk 00:18:14]}
{[%emt 00:05:59]} Ra2 {[%clk 00:03:00]} {[%emt 00:00:31]} 49. Ra4 {[%clk
00:17:39]} {[%emt 00:01:06]} Kd5 {[%clk 00:02:46]} {[%emt 00:00:44]} 50. Rxa6
{[%clk 00:11:46]} {[%emt 00:06:22]} c4 {[%clk 00:03:00]} {[%emt 00:00:17]} 51.
Ne6 {[%clk 00:11:21]} {[%emt 00:00:55]} c3 {[%clk 00:02:07]} {[%emt 00:01:24]}
52. Nxc7+ {[%clk 00:09:55]} {[%emt 00:01:55]} Kc4 {[%clk 00:01:51]} {[%emt
00:00:46]} 53. Rc6+ {[%clk 00:09:45]} {[%emt 00:00:40]} Kb3 {[%clk 00:02:08]}
{[%emt 00:00:13]} 54. Rb6+ {[%clk 00:08:38]} {[%emt 00:01:38]} Kc2 {[%clk
00:01:13]} {[%emt 00:01:24]} 55. Nd5 {[%clk 00:08:13]} {[%emt 00:00:55]} Rxa3
{[%clk 00:01:14]} {[%emt 00:00:30]} 56. Rxg6 {[%clk 00:08:29]} {[%emt
00:00:14]} Ra5 {[%clk 00:01:15]} {[%emt 00:00:29]} 57. Nxc3 {[%clk 00:08:39]}
{[%emt 00:00:20]} Kxc3 {[%clk 00:01:12]} {[%emt 00:00:32]} 58. Rg5 {[%clk
00:08:56]} {[%emt 00:00:13]} Rb5 {[%clk 00:00:36]} {[%emt 00:01:07]} 59. Kg1
{[%clk 00:08:02]} {[%emt 00:01:24]} Nd4 {[%clk 00:00:41]} {[%emt 00:00:25]} 60.
Rxb5 Nxb5 {[%clk 00:01:10]} 61. g4 {[%clk 00:07:48]} {[%emt 00:01:01]} hxg4
{[%clk 00:01:32]} {[%emt 00:00:09]} 62. h5 {[%clk 00:08:12]} {[%emt 00:00:06]}
Nd6 {[%clk 00:01:40]} {[%emt 00:00:22]} 63. Kg2 {[%clk 00:08:07]} {[%emt
00:00:35]} Nf5 {[%clk 00:01:27]} {[%emt 00:00:43]} 64. h6 {[%clk 00:08:20]}
{[%emt 00:00:17]} Nxh6 {[%clk 00:01:50]} {[%emt 00:00:07]} 65. f3 {[%clk
00:08:47]} {[%emt 00:00:03]} gxf3+ {[%clk 00:02:11]} {[%emt 00:00:09]} 66. Kxf3
{[%emt 00:00:03]} 1/2-1/2